Cogmind - Beta 13 @@@ ROGUE MODE // 2024.04.10 @ 18:10:56 Player: Kinga Result: Destroyed by XL-4LK(R) with Subdweller Laser Performance ------------- Evolutions (0) 0 Regions Visited (2) 400 Robots Destroyed (16) 80 Value Destroyed (385) 385 Prototype IDs (0) 0 Alien Tech Used (0) 0 Bonus (0) 0 TOTAL SCORE: 865 Bonus ------- None Cogmind --------- Core Integrity 0/250 Matter 295/300 Energy 85/100 System Corruption 0% Temperature Cool (65) Movement Treading (240) Ox1 Location -10/Subcaves Parts ------- > --- POWER (1) -------- (None) > --- PROPULSION (2) --- Light Treads Light Treads > --- UTILITY (2) ------ High-capacity Storage Unit Makeshift Light Armor Plating > --- WEAPON (2) ------- Subdweller Beam Cannon Subdweller Beam Cannon > --- INVENTORY (20) --- Spiked Treads Large Storage Unit Medium Battery (150) Large Matter Pod (150) Structural Scanner Visual Processing Unit Riot Gun Assault Rifle Assault Rifle Grenade Launcher Makeshift Sword Peak State ------------ > --- POWER ------------ Light Nuclear Core > --- PROPULSION ------- Light Treads Light Treads > --- UTILITY ---------- High-capacity Storage Unit Makeshift Light Armor Plating > --- WEAPON ----------- Subdweller Beam Cannon Makeshift Sword > --- INVENTORY -------- Light Treads Spiked Treads Large Storage Unit Medium Battery Large Matter Pod Structural Scanner Visual Processing Unit Riot Gun Assault Rifle Assault Rifle Grenade Launcher [Rating: 17] Favorites ----------- Power Light Ion Engine Engine Light Ion Engine Power Core Light Nuclear Core Propulsion Light Treads Treads Light Treads Wheel Compact Wheel Utility High-capacity Storage Unit Device Structural Scanner Storage High-capacity Storage Unit Protection Makeshift Light Armor Plating Weapon Assault Rifle Energy Gun Medium Laser Energy Cannon Subdweller Beam Cannon Ballistic Gun Assault Rifle Slashing Weapon Makeshift Sword Build | -11 -10 -10 ------- Run | Yrd Mat Sub Slots Evolved . | . . . Power . | . . . Propulsion . | . . . Utility . | . . . Weapon . | . . . Parts Attached 22 | 6 10 6 Power 3 | 1 1 1 Engine 2 | 1 1 . Core 1 | . . 1 Reactor . | . . . Propulsion 5 | 2 2 1 Treads 3 | . 2 1 Leg . | . . . Wheel 2 | 2 . . Hover . | . . . Flight . | . . . Utility 5 | 1 3 1 Device 1 | . 1 . Storage 3 | 1 2 . Processor . | . . . Hackware . | . . . Protection 1 | . . 1 Artifact . | . . . Weapon 9 | 2 4 3 Energy Gun 1 | . 1 . Energy Cannon 2 | . . 2 Ballistic Gun 5 | 2 3 . Ballistic Cannon . | . . . Launcher . | . . . Special Weapon . | . . . Impact Weapon . | . . . Slashing Weapon 1 | . . 1 Piercing Weapon . | . . . Special Melee Weapon . | . . . Unidentified Prototypes . | . . . Parts Lost 7 | . 3 4 Power 3 | . 1 2 Propulsion 2 | . 1 1 Utility . | . . . Weapon 2 | . 1 1 Highest Loss Streak 2 | . 2 2 To Critical Strikes . | . . . Average Slot Usage (%) 99 | . 98 99 Engine 7 | . 13 4 Core 5 | . . 9 Treads 27 | . 26 28 Device 4 | . 12 . Storage 14 | . 14 14 Protection 8 | . . 13 Energy Cannon 6 | . . 10 Ballistic Gun 17 | . 27 11 Slashing Weapon 3 | . . 5 Naked Turns . | . . . Heaviest Build 65 | 11 48 65 Greatest Support 40 | 26 40 40 Greatest Overweight (x) 1 | . 1 1 Average Overweight (x) . | . . 1 Largest Inventory Capacity 20 | 8 20 20 Average Capacity 19 | 7 18 20 Most Carried 12 | 4 8 12 Average Carried 8 | 1 4 10 Final Capacity 20 | 8 20 20 Final Carried 11 | 4 8 11 Class Distribution -------------------- 100% | Mutant Dominant Class ---------------- Mutant | -10/Materials Mutant | -10/Subcaves Resources | -11 -10 -10 ----------- Run | Yrd Mat Sub Matter Collected 849 | 241 503 105 Remotely . | . . . Salvage Created 745 | . 575 170 Parts 34 | . 28 6 Haulers Intercepted 1 | . 1 . Recyclers Shooed 1 | . 1 . Parts Field Recycled . | . . . Retrieved Matter . | . . . Parts Self-Destructed 17 | . . 17 Prevented . | . . . Kills | -11 -10 -10 ------- Run | Yrd Mat Sub Combat Hostiles Destroyed 8 | . 5 3 Guns 5 | . 5 . Cannons 2 | . . 2 Classes Destroyed 6 | . 5 1 Worker 1 | . 1 . Hauler 1 | . 1 . Recycler 3 | . 3 . Watcher 3 | . 3 . Grunt 5 | . 5 . Subdweller 3 | . . 3 Best Kill Streak 4 | . 4 1 Combat Bots Only 3 | . 3 1 Max Kills in Single Turn 1 | . 1 1 Gunslinging . | . . . Exploded . | . . . Melee . | . . . Uniques/NPCs Destroyed . | . . . Combat | -11 -10 -10 -------- Run | Yrd Mat Sub Hostile Shots Fired 97 | . 66 31 Missed 33 | . 23 10 Damage Taken 1089 | . 571 518 Core 252 | . 187 65 Absorbed by Shields . | . . . Core Remaining (%) 100 | 100 . . Volleys Fired 75 | . 55 20 Largest 2 | . 2 2 Hottest 160 | . 70 160 Shots Fired 148 | . 110 38 Gun 126 | . 110 16 Cannon 22 | . . 22 Launcher . | . . . Special . | . . . Kinetic 119 | . 103 16 Thermal 29 | . 7 22 Explosive . | . . . Electromagnetic . | . . . Robot Hit Streak 11 | . 11 8 Robot Miss Streak 4 | . 4 2 Penetration Max . | . . . Secondary Targets 1 | . 1 . Max Gunslinging Chain 1 | . 1 . Shots Hit Robots 98 | . 74 24 Core Hits 32 | . 28 4 Critical Kills 2 | . 1 1 Critical Parts Destroyed 1 | . 1 . Critical Strikes 3 | . 2 1 Meltdown 1 | . . 1 Destroy 2 | . 2 . Melee Attacks 8 | . . 8 Impact . | . . . Slashing 8 | . . 8 Piercing . | . . . Sneak Attacks . | . . . Combat Hostiles . | . . . Follow-up Attacks . | . . . Damage Inflicted 1342 | . 851 491 Guns 957 | . 851 106 Cannons 385 | . . 385 Explosions . | . . . Melee . | . . . Ramming . | . . . Kinetic 896 | . 790 106 Thermal 446 | . 61 385 Explosive . | . . . Electromagnetic . | . . . Impact . | . . . Slashing . | . . . Piercing . | . . . Highest Corruption . | . . . Average Corruption . | . . . Corruption Purged . | . . . Corruption Blocked . | . . . Overload Shots . | . . . Overflow Damage . | . . . Projectiles . | . . . Explosions . | . . . Melee . | . . . Knockbacks . | . . . Impact . | . . . Kinetic . | . . . Secondary . | . . . Self-Inflicted Damage . | . . . Shots . | . . . Rammed . | . . . Targets Rammed . | . . . Kicked . | . . . Crushed . | . . . Highest Temperature 180 | . 104 180 Average Temperature 49 | . 42 82 Received Heat Transfer 441 | . 381 60 Siege Activations . | . . . Robots Corrupted . | . . . Combat Hostiles . | . . . Parts Fried . | . . . Impact Corruptions . | . . . Robots Melted 1 | . . 1 Combat Hostiles 1 | . . 1 Parts Melted 2 | . . 2 Heat Transferred 703 | . 185 518 Parts Sabotaged . | . . . Parts Stolen . | . . . Parts Stripped . | . . . Power Chain Reactions . | . . . Alert | -11 -10 -10 ------- Run | Yrd Mat Sub Peak Influence 121 | . 121 . Initial . | . . . Average 40 | . 42 . Maximum Alert Level . | . . . Low Security (%) 100 | 100 100 . Level 1 . | . . . Level 2 . | . . . Level 3 . | . . . Level 4 . | . . . Level 5 . | . . . High Security . | . . . Max Security . | . . . Squads Dispatched . | . . . Investigation . | . . . Extermination . | . . . Reinforcement . | . . . Assault . | . . . Garrison . | . . . Intercept . | . . . Searches Triggered . | . . . Construction Impeded . | . . . Haulers Reinforced . | . . . Active Scanning Responses . | . . . Cargo Convoy Interrupts . | . . . Stealth | -11 -10 -10 --------- Run | Yrd Mat Sub Distress Signals 2 | . 2 . Communications Jammed . | . . . Distress Signals . | . . . Times Spotted 26 | . 20 6 Peak Tracking Total 4 | . 4 2 Tactical Retreats 5 | . 5 . Traps | -11 -10 -10 ------- Run | Yrd Mat Sub Traps Triggered 1 | . 1 . Indirectly . | . . . Trap Hack Attempts . | . . . Triggered . | . . . Disarmed . | . . . Reprogrammed . | . . . Reused . | . . . Traps Extracted . | . . . Installed . | . . . Triggered . | . . . Machines | -11 -10 -10 ---------- Run | Yrd Mat Sub Machines Disabled . | . . . Max in Single Turn . | . . . Machines Repaired . | . . . Machines Dismantled . | . . . Machines Sabotaged . | . . . Overloaded Fab Kills . | . . . Hacking | -11 -10 -10 --------- Run | Yrd Mat Sub Machines Accessed 6 | . 5 1 Terminals 5 | . 5 . Fabricators . | . . . Repair Stations . | . . . Recycling Units . | . . . Scanalyzers . | . . . Garrison Access . | . . . Total Hacks 15 | . 12 3 Successful 10 | . 7 3 Failed 5 | . 5 . Catastrophic . | . . . Database Lockouts . | . . . Manual 14 | . 14 . Terminals 12 | . 12 . Fabricators . | . . . Repair Stations . | . . . Recycling Units . | . . . Scanalyzers . | . . . Garrison Access . | . . . Terminal Hacks 7 | . 4 3 Record 3 | . . 3 Terminal Index 1 | . 1 . Fabricator Index 1 | . 1 . Unreport Threat 1 | . 1 . Hauler Manifests 1 | . 1 . Fabricator Hacks . | . . . Repair Station Hacks . | . . . Recycling Unit Hacks . | . . . Scanalyzer . | . . . Garrison Access Hacks . | . . . Unauthorized Hacks 3 | . 3 . Terminals 3 | . 3 . Botnet 3 | . 3 . Fabricators . | . . . Repair Stations . | . . . Recycling Units . | . . . Scanalyzers . | . . . Garrison Access . | . . . Data Cores Recovered . | . . . Used . | . . . Hacking Detections 2 | . 2 . Full Trace Events 1 | . 1 . Feedback Events . | . . . Feedback Blocked . | . . . Robot Schematics Acquired . | . . . Robots Built . | . . . Authchips . | . . . Time . | . . . Total Robot Build Rating . | . . . Part Schematics Acquired . | . . . Parts Built . | . . . Authchips . | . . . Time . | . . . Total Part Build Rating . | . . . Parts Repaired . | . . . Time . | . . . Parts Recycled . | . . . Recycled Matter . | . . . Retrieved Matter . | . . . Retrieved Components . | . . . Parts Scanalyzed . | . . . Part Schematics Acquired . | . . . Parts Damaged . | . . . Bothacking | -11 -10 -10 ------------ Run | Yrd Mat Sub Used RIF Installer . | . . . Robots Hacked . | . . . Non-combat . | . . . Combat . | . . . Robot Hacks Applied . | . . . Relay Couplers Released . | . . . Fabnet Peak Effective % . | . . . Robots Rewired . | . . . Allies Hacked . | . . . Hacks Repelled . | . . . Allies | -11 -10 -10 -------- Run | Yrd Mat Sub Total Allies . | . . . Largest Group . | . . . Highest-Rated Group . | . . . Highest-Rated Ally . | . . . Total Orders . | . . . Ally Attacks . | . . . Total Damage . | . . . Kills . | . . . Allies Corrupted . | . . . Allies Melted . | . . . Intel | -11 -10 -10 ------- Run | Yrd Mat Sub Robot Analysis Total . | . . . Derelict Logs Recovered . | . . . Drone Launches . | . . . Drone Recoveries . | . . . Exploration | -11 -10 -10 ------------- Run | Yrd Mat Sub Turns Passed 3035 | 64 1110 1861 Spaces Moved 1221 | 58 427 736 Core 1 | 1 . . Treads 1148 | . 412 736 Legs . | . . . Wheels 72 | 57 15 . Hover . | . . . Flight . | . . . Fastest Speed 50 | 50 90 240 Average Speed 225 | 89 217 240 Slowest Speed 240 | 90 240 240 Overloaded Moves . | . . . Propulsion Burnouts . | . . . Robots Hopped . | . . . Cave-ins Triggered . | . . . Exploration Rate (%) 38 | 3 69 42 Regions Visited 2 Branch Regions 1 Pre-discovered Areas . | . . . Known Exits Taken . | . . . Unknown Exits Taken 2 | 1 1 . Scrap Searched 1 | . . 1 Spaces Dug 4 | . . 4 Terrain Destroyed 5 | . . 5 Melee 4 | . . 4 Projectile 1 | . . 1 AOE . | . . . Terrain Rammed . | . . . Walls Destroyed . | . . . Machines Disabled . | . . . Actions | -11 -10 -10 --------- Run | Yrd Mat Sub Total 1353 | 67 501 785 Wait 8 | . . 8 Move 1219 | 57 426 736 Hop . | . . . Pick Up 17 | 4 7 6 Fast Attach 9 | 6 3 . Attach 9 | . 5 4 Detach 1 | . . 1 Swap 4 | . 2 2 Drop 3 | . 3 . Fire 75 | . 55 20 Melee 8 | . . 8 Ram . | . . . Kick . | . . . Crush . | . . . Escape Stasis . | . . . Rewire . | . . . Trap . | . . . Miscellaneous . | . . . Route ------- -11/Scrapyard -10/Materials (discovered 3 exits: [*Mat] / [*Min] / *Sub) -10/Subcaves History --------- Turn | Location | Event 33 | -11/Scrapyard | Discovered new exit (range 16) 65 | -11/Scrapyard | Entered Materials 249 | -10/Materials | Discovered new exit (range 6) 269 | -10/Materials | Core integrity fell below 50% 308 | -10/Materials | Build established: Mutant 547 | -10/Materials | Discovered new exit (range 16) 861 | -10/Materials | Discovered new exit (range 8) 1175 | -10/Materials | Entered Subcaves 1254 | -10/Subcaves | Shifting Twisted Machinery released Mak. Kinetic Plating 1266 | -10/Subcaves | Shifting Twisted Machinery released Sub. Beam Cannon 1602 | -10/Subcaves | Visited Clippyterm 1610 | -10/Subcaves | Learned Research security intel 1771 | -10/Subcaves | Core integrity fell below 20% 1842 | -10/Subcaves | Shifting Twisted Machinery released Riot Gun 1852 | -10/Subcaves | Shifting Twisted Machinery released Mak. Sword 2860 | -10/Subcaves | Shifting Twisted Machinery released Sub. Monowheel 3036 | -10/Subcaves | Destroyed by XL-4LK(R) with Subdweller Laser Last Messages --------------- 01799_ 3E-FFX(R) destroyed. 01807_ Subatomizers dissect the Disposable Heat Sink. 01812_ Acquired 51 matter. 01821_ Acquired Spk. Treads. Riot Gun falls loose from the Twisted Machinery. 01844_ Subatomizers dissect the Disposable Heat Sink. Mak. Sword falls loose from the Twisted Machinery. 01856_ Acquired Riot Gun. 01936_ Subatomizers dissect the Sub. Monowheel. 02130_ Acquired Mak. Sword. 02746_ Acquired Sub. Beam Cannon. Sub. Monowheel falls loose from the Twisted Machinery. 02912_ 3X-JB7(R) destroyed. 02917_ Subatomizers dissect the Sub. Monowheel. 02922_ Acquired 32 matter. 02925_ Lgt. Treads destroyed. 02928_ Subatomizers dissect the Sub. Monowheel. 02929_ RW-YOH(R) destroyed. 03033_ Lgt. Nuclear Core destroyed. 03035_ Sub. Beam Cannon shoots sparks and powers down. Map ----- +----------------------------------------------------+ | ?????????????????????????????????????????????????? | | ?????????????????????????????????????????????????? | | ?????????????????????????????????????????????????? | | ?????????????????????????????????????????????????? | | ?????????????????????????????????????????????????? | | ?????????????????????????????????????????????????? | | ?????????????????????????????????????????????????? | | ?????????????????????????????????????????????????? | | ?????????????????????????????????????????????????? | | ?????????????????????????????????????????????????? | | ?????????????????????????????????????????????????? | | ?????????????????????????????????????????????????? | | ?????????????????????????????????????????????????? | | ?????????????????????????????????????????????????? | | ?????????????????????????????????????????????????? | | ?????????????????????????????????????######?????## | | ????????????????????????????????????## #?????# | | ????????????????????????????????????# #?????## | | ????????????????????????????????????# ##????# | | ????????????????????????????????????# #???## | | ????????????????????????????????????# ##### | | ????????????????????????????????????# # | | ??????????????????????????????####### | | ?????????????????????####?##### ## ## | | ?????????????????## # ## ## #### | | ?????????????#" R @ ## #??# | | ?????????????#" " R ###### ##??# | | ?????????????# """ ## #????##" #??### | | ????????????????####???## "###" #### | | ????????????????????????## | | ?????????????????????????# | | ?????????????????????????# ## | | ????????????????????????? "" ### # | | ????????????????????????### #?# | | ??????????????????????????# ##?## | | ??????????????????????????# ##???#### | | ??????????????????????????# "" ##???????# " | | ??????????????????????????## ##????????### & | | ????????????????????????????# "#??????????# = | | ??????????????????????????????"???????????# | | ??????????????????????????????????????????# | | ??????????????????????????????????????????### " | | ????????????????????????????????????????????# ## | | ????????????????????????????????????????????# ## | | ???????????????????????????????????????????# # | | ???????????????????????????????????????????# "# | | ???????????????????????????????????????????# "# | | ???????????????????????????????????????? ??" "# | | ???????????????????????????????????????? #" "" | | ?????????????????????????????????????? "? | +----------------------------------------------------+ Best States ------------- Heat Dissipation 25 Energy Generation 14 Energy Capacity 160 Matter Stores 300 Matter Capacity 300 Sight Range 16 Terrain Scan Density 10 Armor Coverage 100 Evasion (%) 42 Recoil Reduction 2 Item Schematics ----------------- None Robot Schematics ------------------ None Fabricated ------------ Nothing Alien Tech Used ----------------- None Achievements -------------- None Challenges ------------ None Game ------ Seed MassResetPropulsion Manual? 0 Play Time 00:12:15 Cumulative 20.3 hours Start 2024.04.10 @ 17:59:49 End 2024.04.10 @ 18:10:56 Sessions 1 Manual Loads 0 Difficulty Rogue Special Mode None Game No. 33 Rogue 33 Adventurer 0 Explorer 0 Win Type - Total 1 Types 1/0/0/0/0/0/0/0/0 Lore% 17 Gallery% 33 Achievement% 30 Wizard Run 0 Options --------- Layout 0 ASCII 0 Keyboard 0 Movement Numpad Keybinds 0 Fullscreen 2 Font 18/SmallcapsGlow Map View 76x50 Zoom Use 0% Tactical HUD 1 Map Filters NONE Filters NONE Steam 1 RUN: aa3b9c33-84fc-4ad4-99d0-7a8b73141acd